lending/lending_fUSD_20250218
["ID","MTS","AMOUNT","RATE_DAILY","PERIOD"]
[353534993,1739902239703,-500.0,0.00019726,3]
[353534994,1739902239712,-500.0,0.00019726,3]
[353534995,1739902239722,-500.0,0.00019726,3]
[353534996,1739902239731,-500.0,0.00019726,3]
[353534997,1739902239740,-500.0,0.00019726,3]
[353534998,1739902239750,-575.75,0.00019726,3]
[353534999,1739902239759,-500.0,0.00019726,3]
[353535000,1739902239770,-500.0,0.00019726,3]
[353535001,1739902239779,-500.0,0.00019726,3]
[353535002,1739902239788,-500.0,0.00019726,3]
[353535003,1739902239798,-511.99,0.00019726,3]
[353535004,1739902239807,-500.0,0.00019726,3]
[353535005,1739902239817,-500.0,0.00019726,3]
[353535006,1739902239827,-500.0,0.00019726,3]
[353535007,1739902239836,-500.0,0.00019726,3]
[353535008,1739902239846,-500.0,0.00019726,3]
[353535009,1739902239855,-500.0,0.00019726,3]
[353535010,1739902239864,-502.02543627,0.00019726,3]
[353535011,1739902239873,-500.0,0.00019726,3]
[353535012,1739902239883,-500.0,0.00019726,3]
[353535013,1739902239892,-504.84766792,0.00019726,3]
[353535014,1739902239901,-500.0,0.00019726,3]
[353535015,1739902239910,-503.18270127,0.00019726,3]
[353535016,1739902239920,-508.9574144,0.00019726,3]
[353535017,1739902239929,-500.0,0.00019726,3]
[353535018,1739902239938,-500.0,0.00019726,3]
[353535019,1739902239952,-500.0,0.00019726,3]
[353535020,1739902239962,-500.0,0.00019726,3]
[353535021,1739902239971,-502.31648222,0.00019726,3]
[353535022,1739902239980,-500.0,0.00019726,3]
[353535023,1739902239989,-500.0,0.00019726,3]
[353535024,1739902239999,-226.97877613,0.00019726,3]
[353535025,1739902240009,-500.0,0.00019726,3]
[353535026,1739902240020,-500.0,0.00019726,3]
[353535027,1739902240030,-503.61678661,0.00019726,3]
[353535028,1739902240041,-500.0,0.00019726,3]
[353535029,1739902240051,-511.69272308,0.00019726,3]
[353535030,1739902240060,-500.0,0.00019726,3]
[353535031,1739902240070,-500.0,0.00019726,3]
[353535032,1739902240079,-500.0,0.00019726,3]
[353535033,1739902240089,-500.0,0.00019726,3]
[353535034,1739902240099,-200.61530178,0.00019726,3]
[353535035,1739902240109,-500.0,0.00019726,3]
[353535036,1739902240119,-500.0,0.00019726,3]
[353535037,1739902240128,-503.83201734,0.00019726,3]
[353535039,1739902240138,-500.0,0.00019726,3]
[353535040,1739902240147,-500.0,0.00019726,3]
[353535041,1739902240156,-500.0,0.00019726,3]
[353535042,1739902240166,-500.0,0.00019726,3]
[353535043,1739902240175,-500.0,0.00019726,3]
[353535044,1739902240184,-500.0,0.00019726,3]
[353535045,1739902240194,-500.0,0.00019726,3]
[353535046,1739902240203,-500.0,0.00019726,3]
[353535047,1739902240212,-500.0,0.00019726,3]
[353535048,1739902240222,-504.60281853,0.00019726,3]
[353535050,1739902240231,-500.0,0.00019726,3]
[353535052,1739902240240,-500.0,0.00019726,3]
[353535054,1739902240249,-500.0,0.00019726,3]
[353535055,1739902240259,-509.41384361,0.00019726,3]
[353535056,1739902240269,-500.0,0.00019726,3]
[353535057,1739902240278,-500.0,0.00019726,3]
[353535058,1739902240288,-500.0,0.00019726,3]
[353535059,1739902240297,-500.0,0.00019726,3]
[353535060,1739902240306,-504.2675551,0.00019726,3]
[353535061,1739902240315,-500.0,0.00019726,3]
[353535062,1739902240325,-500.0,0.00019726,3]
[353535063,1739902240334,-500.0,0.00019726,3]
[353535064,1739902240343,-500.0,0.00019726,3]
[353535065,1739902240353,-500.0,0.00019726,3]
[353535066,1739902240363,-500.0,0.00019726,3]
[353535067,1739902240372,-502.18404574,0.00019726,3]
[353535068,1739902240381,-500.0,0.00019726,3]
[353535069,1739902240391,-500.0,0.00019726,3]
[353535070,1739902240400,-500.0,0.00019726,3]
[353535071,1739902240409,-514.65136638,0.00019726,3]
[353535072,1739902240418,-500.0,0.00019726,3]
[353535073,1739902240427,-500.0,0.00019726,3]
[353535074,1739902240437,-500.0,0.00019726,3]
[353535075,1739902240446,-502.37686408,0.00019726,3]
[353535076,1739902240455,-500.0,0.00019726,3]
[353535077,1739902240464,-500.0,0.00019726,3]
[353535078,1739902240473,-500.0,0.00019726,3]
[353535079,1739902240482,-500.0,0.00019726,3]
[353535080,1739902240492,-500.0,0.00019726,3]
[353535081,1739902240501,-500.0,0.00019726,3]
[353535082,1739902240511,-504.13826468,0.00019726,3]
[353535083,1739902240521,-500.0,0.00019726,3]
[353535084,1739902240530,-500.0,0.00019726,3]
[353535085,1739902240540,-502.12373826,0.00019726,3]
[353535086,1739902240549,-500.0,0.00019726,3]
[353535087,1739902240558,-500.0,0.00019726,3]
[353535088,1739902240567,-500.0,0.00019726,3]
[353535089,1739902240577,-500.0,0.00019726,3]
[353535090,1739902240586,-500.0,0.00019726,3]
[353535091,1739902240596,-500.0,0.00019726,3]
[353535092,1739902240605,-500.0,0.00019726,3]
[353535093,1739902240615,-500.0,0.00019726,3]
[353535094,1739902240624,-500.0,0.00019726,3]
[353535095,1739902240634,-500.0,0.00019726,3]
[353535096,1739902240644,-500.0,0.00019726,3]
[353535097,1739902240653,-500.0,0.00019726,3]
[353535098,1739902240663,-611.27,0.00019726,3]
[353535099,1739902240672,-500.0,0.00019726,3]
[353535100,1739902240682,-500.0,0.00019726,3]
[353535101,1739902240691,-553.94,0.00019726,3]
[353535102,1739902240700,-457.6872204,0.00019726,3]
[353535103,1739902240709,-500.0,0.00019726,3]
[353535104,1739902240719,-500.0,0.00019726,3]
[353535105,1739902240728,-500.0,0.00019726,3]
[353535106,1739902240738,-377.09,0.00019726,3]
[353535107,1739902240747,-500.0,0.00019726,3]
[353535108,1739902240756,-500.0,0.00019726,3]
[353535109,1739902240767,-603.97,0.00019726,3]
[353535110,1739902240777,-500.0,0.00019726,3]
[353535111,1739902240786,-584.92,0.00019726,3]
[353535112,1739902240796,-319.76,0.00019726,3]
[353535113,1739902240805,-500.0,0.00019726,3]
[353535114,1739902240815,-500.0,0.00019726,3]
[353535115,1739902240824,-500.0,0.00019726,3]
[353535116,1739902240833,-500.0,0.00019726,3]
[353535117,1739902240843,-500.0,0.00019726,3]
[353535118,1739902240852,-551.58,0.00019726,3]
[353535119,1739902240861,-500.0,0.00019726,3]
[353535120,1739902240870,-500.0,0.00019726,3]
[353535121,1739902240879,-565.94,0.00019726,3]
[353535122,1739902240888,-500.0,0.00019726,3]
[353535123,1739902240897,-500.0,0.00019726,3]
[353535124,1739902240906,-169.4664,0.00019726,3]
[353535125,1739902240915,-500.0,0.00019726,3]
[353535126,1739902240925,-500.0,0.00019726,3]
[353535127,1739902240934,-500.0,0.00019726,3]
[353535128,1739902240945,-500.0,0.00019726,3]
[353535129,1739902240954,-500.0,0.00019726,3]
[353535130,1739902240964,-500.0,0.00019726,3]
[353535131,1739902240974,-597.1808614,0.00019726,3]
[353535132,1739902240983,-500.0,0.00019726,3]
[353535133,1739902240992,-500.0,0.00019726,3]
[353535134,1739902241002,-500.0,0.00019726,3]
[353535135,1739902241011,-500.0,0.00019726,3]
[353535136,1739902241023,-500.0,0.00019726,3]
[353535137,1739902241032,-500.0,0.00019726,3]
[353535138,1739902241041,-500.0,0.00019726,3]
[353535139,1739902241050,-500.0,0.00019726,3]
[353535140,1739902241059,-500.0,0.00019726,3]
[353535141,1739902241068,-500.0,0.00019726,3]
[353535142,1739902241077,-500.0,0.00019726,3]
[353535143,1739902241086,-500.0,0.00019726,3]
[353535144,1739902241096,-131.16609923,0.00019726,3]
[353535145,1739902241116,-368.83390077,0.00019726,3]
[353535146,1739902241125,-500.0,0.00019726,3]
[353535147,1739902241134,-500.0,0.00019726,3]
[353535148,1739902241143,-500.0,0.00019726,3]
[353535149,1739902241152,-500.0,0.00019726,3]
[353535150,1739902241161,-500.0,0.00019726,3]
[353535151,1739902241171,-500.0,0.00019726,3]
[353535152,1739902241180,-500.0,0.00019726,3]
[353535153,1739902241189,-500.0,0.00019726,3]
[353535154,1739902241199,-500.0,0.00019726,3]
[353535155,1739902241208,-500.0,0.00019726,3]
[353535156,1739902241217,-500.0,0.00019726,3]
[353535157,1739902241227,-500.0,0.00019726,3]
[353535158,1739902241236,-503.65762648,0.00019726,3]
[353535159,1739902241245,-500.0,0.00019726,3]
[353535160,1739902241254,-500.0,0.00019726,3]
[353535161,1739902241263,-500.0,0.00019726,3]
[353535162,1739902241274,-500.0,0.00019726,3]
[353535163,1739902241283,-500.0,0.00019726,3]
[353535164,1739902241293,-500.0,0.00019726,3]
[353535165,1739902241302,-500.0,0.00019726,3]
[353535166,1739902241312,-500.0,0.00019726,3]
[353535167,1739902241322,-500.0,0.00019726,3]
[353535168,1739902241331,-500.0,0.00019726,3]
[353535169,1739902241340,-500.0,0.00019726,3]
[353535170,1739902241350,-500.0,0.00019726,3]
[353535171,1739902241359,-500.0,0.00019726,3]
[353535172,1739902241368,-408.91274273,0.00019726,3]
[353535173,1739902241414,-90.00639151,0.00019726,3]
[353535174,1739902241424,-163.46930284,0.00019726,3]
[353535175,1739902241434,-267.83040658,0.00019726,3]
[353535176,1739902241443,-240.0,0.00019726,3]
[353535177,1739902241453,-673.82,0.00019726,3]
[353535178,1739902241462,-500.0,0.00019726,3]
[353535179,1739902241472,-500.0,0.00019726,3]
[353535180,1739902241481,-608.09980672,0.00019726,3]
[353535181,1739902241490,-500.0,0.00019726,3]
[353535182,1739902241500,-269.93,0.00019726,3]
[353535183,1739902241509,-500.0,0.00019726,3]
[353535184,1739902241518,-500.0,0.00019726,3]
[353535185,1739902241528,-1000.0,0.00019726,3]
[353535186,1739902241537,-500.0,0.00019726,3]
[353535187,1739902241547,-500.0,0.00019726,3]
[353535188,1739902241557,-760.84,0.00019726,7]
[353535189,1739902241566,-361.16384819,0.00019726,3]
[353535190,1739902241575,-241.74341796,0.00019726,3]
[353535191,1739902241585,-500.0,0.00019726,3]
[353535192,1739902241594,-159.6313451,0.00019751,2]
[353535193,1739902241604,-500.0,0.00019773,2]
[353535194,1739902241613,-417.52934133,0.0001979,3]
[353535195,1739902241624,-429.81448901,0.0001979,3]
[353535196,1739902241640,-2558.93459246,0.0001979,3]
[353535197,1739902241651,-480.9821016,0.0001979,3]
[353535241,1739902242537,-411.545,0.0001979,3]
[353535245,1739902242593,-3793.50365129,0.0001979,3]
[353535247,1739902242605,-3335.94204821,0.0001979,3]
[353535249,1739902242615,-800.0,0.000198,7]
[353535250,1739902242624,-159.6313451,0.00019825,2]
[353535253,1739902242634,-318.51152,0.00019827,7]
[353535254,1739902242644,-150.0,0.00019827,2]
[353535257,1739902242654,-200.981,0.00019833,2]
[353535258,1739902242664,-500.0,0.0001984,2]
[353535260,1739902242673,-150.0,0.0001984,2]
[353535262,1739902242683,-200.0,0.00019864,30]
[353535264,1739902242693,-2364.88485548,0.00019873,2]
[353535266,1739902242702,-11428.2512239,0.0001988,3]
[353535268,1739902242711,-200.0,0.00019889,30]
[353535270,1739902242721,-573.1323,0.0001989,2]
[353535272,1739902242731,-23246.9154,0.0001989,2]
[353535274,1739902242741,-1000.0,0.000199,2]
[353535276,1739902242750,-330.6067,0.000199,2]
[353535278,1739902242760,-500.0,0.000199,2]
[353535280,1739902242770,-68569.5073434,0.0001996,3]
[353535282,1739902242780,-500.0,0.00019969,3]
[353535284,1739902242790,-102854.261015,0.00019969,3]
[353535286,1739902242799,-16922.35523015,0.00019969,3]
[353535288,1739902242812,-472.4293333,0.00019969,3]
[353535291,1739902242828,-706.06519905,0.00019969,3]
[353535293,1739902242837,-11359.30757732,0.0001997,3]
[353535321,1739902245476,-500.0,0.00019726,3]
[353535322,1739902245486,-159.6313451,0.000199,2]
[353535323,1739902245496,-68.94364658,0.0001997,3]
[353535324,1739902245506,-321.69611551,0.0001997,3]
[353535325,1739902245518,-1240.7222775,0.0001997,3]
[353535326,1739902245531,-317.83985984,0.0001997,3]
[353535327,1739902245543,-341.95908273,0.0001997,3]
[353535328,1739902245558,-363.61834478,0.0001997,3]
[353535329,1739902245568,-500.0,0.00019973,2]
[353535330,1739902245577,-11428.2512239,0.00019979,3]
[353535331,1739902245588,-1581.93459667,0.00019979,3]
[353535332,1739902245600,-1134.1195396,0.00019979,3]
[353535333,1739902245749,-1273.29999993,0.00019979,3]
[353535335,1739902245805,-1182.31722452,0.00019979,3]
[353535336,1739902245815,-500.0,0.00019979,3]
[353535337,1739902245825,-500.0,0.00019979,3]
[353535338,1739902245835,-322.56,0.00019979,3]
[353535339,1739902245844,-2201.23867541,0.0001998,3]
[353535343,1739902978236,1464.94919574,0.000205,120]
[353535344,1739903010843,150.0,0.00020387,120]
[353535346,1739903041852,10692.58752536,0.00020487,120]
[353535348,1739903111741,1043.63325531,0.00020487,120]
[353535349,1739903115468,1437.04320456,0.000121,30]
[353535350,1739903120781,348.44760523,0.00020487,120]
[353535351,1739903122533,1207.58623851,0.00020487,120]
[353535352,1739903127892,624.34048504,0.0002,120]
[353535353,1739903132944,936.2216964,0.0002,120]
[353535354,1739903142340,297.76670012,0.00020487,120]
[353535355,1739903145875,1097.2363304,0.00020487,120]
[353535356,1739903156931,195.12989549,0.00017,120]
[353535357,1739903163805,154.61301389,0.00020487,120]
[353535358,1739903173336,622.69763118,0.0002,120]
[353535359,1739903174760,247.0186375,0.00020487,120]
[353535360,1739903175324,1000.0,0.000205,120]
[353535361,1739903176534,606.97938413,0.00020487,120]
[353535362,1739903181274,247.83899231,0.00020487,120]
[353535363,1739903188345,209.22791037,0.00020487,120]
[353535365,1739903221962,282.14593244,0.00020487,120]
[353535373,1739903234785,303.23604196,0.00020487,120]
[353535374,1739903251275,150.0,0.00019822,120]
[353535375,1739903256045,520.87901327,0.00020487,120]
[353535376,1739903261373,175.81830223,0.00020487,120]
[353535377,1739903265955,668.60247604,0.00020487,120]
[353535378,1739903266931,206.551499,0.00020487,120]
[353535379,1739903267298,155.51347371,0.00020487,120]
[353535380,1739903268198,1026.70607342,0.0002,120]
[353535381,1739903269869,254.24488876,0.00020487,120]
[353535382,1739903270971,419.76556586,0.0002,120]
[353535383,1739903274363,523.49131219,0.00020487,120]
[353535384,1739903293911,166.07318371,0.0002,120]
[353535385,1739903310387,1524.09832538,0.00020487,120]
[353535387,1739903312860,1979.39324706,0.00020487,120]
[353535388,1739903314411,220.50746017,0.00020487,120]
[353535389,1739903315065,208.81125834,0.00020487,120]
[353535390,1739903315139,753.10118417,0.00020487,120]
[353535391,1739903315442,185.8465253,0.0002,120]
[353535392,1739903315539,171.00637682,0.00020487,120]
[353535393,1739903316309,158.93194492,0.00020487,120]
[353535394,1739903316343,2511.97871632,0.00020487,120]
[353535395,1739903316869,294.83,8.767e-05,2]
[353535396,1739903317231,231.34752576,0.00020487,120]
[353535397,1739903317828,936.90932373,0.00020487,120]
[353535398,1739903320498,411.07904416,0.00020487,120]
[353535399,1739903321023,165.12715136,0.00020487,120]
[353535400,1739903322618,431.44594278,0.00020487,120]
[353535401,1739903323758,435.97676973,0.0001,120]
[353535402,1739903324629,306.95377955,0.0002,120]
[353535403,1739903324945,159.54844804,0.00020487,120]
[353535404,1739903325531,999.03626085,0.00020487,120]
[353535426,1739903372806,-281.47,0.00018922,30]
[353535427,1739903372841,-200.0,0.00019817,30]
[353535428,1739903372867,-200.0,0.00019867,30]
[353535429,1739903372921,-152.98,0.0002,31]
[353535430,1739903372950,-152.98,0.0002,31]
[353535431,1739903372978,-152.98,0.0002,31]
[353535432,1739903373007,-152.98,0.0002,31]
[353535433,1739903373037,-152.98,0.0002,31]
[353535434,1739903373067,-152.98,0.0002,31]
[353535435,1739903373097,-152.98,0.0002,31]
[353535436,1739903373128,-152.98,0.0002,31]
[353535437,1739903373158,-152.98,0.0002,31]
[353535438,1739903373187,-152.98,0.0002,31]
[353535439,1739903373215,-152.98,0.0002,31]
[353535440,1739903373243,-152.98,0.0002,31]
[353535441,1739903373323,-410.13968137,0.000205,30]
[353535442,1739903373353,-1983.61937618,0.00021,120]
[353535443,1739903373379,-500.0,0.0002118,90]
[353535444,1739903373407,-500.0,0.0002119,90]
[353535445,1739903373433,-500.0,0.0002119,90]
[353535446,1739903373461,-281.47,0.00021506,30]
[353535447,1739903373489,-2422.42,0.00021917,30]
[353535448,1739903373515,-2422.42,0.00021917,30]
[353535449,1739903373540,-2422.42,0.00021917,30]
[353535450,1739903373567,-2422.42,0.00021917,30]
[353535451,1739903373593,-2422.42,0.00021917,30]
[353535452,1739903373619,-2422.42,0.00021917,30]
[353535453,1739903373646,-2422.42,0.00021917,30]
[353535454,1739903373672,-2422.42,0.00021917,30]
[353535455,1739903373698,-2422.42,0.00021917,30]
[353535456,1739903373725,-2422.42,0.00021917,30]
[353535457,1739903373974,-2422.42,0.00021917,30]
[353535458,1739903374002,-2422.42,0.00021917,30]
[353535459,1739903374029,-2422.42,0.00021917,30]
[353535460,1739903374056,-2422.42,0.00021917,30]
[353535461,1739903374082,-2422.42,0.00021917,30]
[353535462,1739903374110,-2422.42,0.00021917,30]
[353535463,1739903374137,-2422.42,0.00021917,30]
[353535464,1739903374162,-2422.42,0.00021917,30]
[353535465,1739903374188,-2422.42,0.00021917,30]
[353535466,1739903374213,-2422.42,0.00021917,30]
[353535467,1739903374239,-2422.42,0.00021917,30]
[353535468,1739903374272,-2422.42,0.00021917,30]
[353535469,1739903374300,-2422.42,0.00021917,30]
[353535470,1739903374330,-2422.56622491,0.00021917,30]
[353535471,1739903374358,-3295.28,0.00021917,120]
[353535472,1739903374385,-3295.28,0.00021917,120]
[353535473,1739903374413,-3295.28,0.00021917,120]
[353535474,1739903374440,-3295.28,0.00021917,120]
[353535475,1739903374466,-3295.28,0.00021917,120]
[353535476,1739903374492,-3295.28,0.00021917,120]
[353535477,1739903374518,-3295.28,0.00021917,120]
[353535478,1739903374544,-3295.28,0.00021917,120]
[353535479,1739903374570,-3295.28,0.00021917,120]
[353535480,1739903374597,-3295.28,0.00021917,120]
[353535481,1739903374622,-3295.28,0.00021917,120]
[353535482,1739903374647,-3295.28,0.00021917,120]
[353535483,1739903374672,-3295.28,0.00021917,120]
[353535484,1739903374697,-3295.28,0.00021917,120]
[353535485,1739903374722,-3295.28,0.00021917,120]
[353535486,1739903374748,-3295.28,0.00021917,120]
[353535487,1739903374773,-3295.28,0.00021917,120]
[353535488,1739903374798,-3295.28,0.00021917,120]
[353535489,1739903374822,-3295.28,0.00021917,120]
[353535490,1739903374847,-3295.28,0.00021917,120]
[353535491,1739903374871,-3295.28,0.00021917,120]
[353535492,1739903374895,-3295.28,0.00021917,120]
[353535493,1739903374920,-3295.28,0.00021917,120]
[353535494,1739903374945,-3295.3280449,0.00021917,120]
[353535495,1739903374971,-2000.0,0.00021917,30]
[353535496,1739903374997,-2000.0,0.00021917,30]
[353535497,1739903375021,-156.54208843,0.00021917,30]
[353535498,1739903375047,-1000.0,0.00021917,120]
[353535499,1739903375072,-1000.0,0.00021917,120]
[353535500,1739903375098,-1000.0,0.00021917,120]
[353535501,1739903375124,-1000.0,0.00021917,120]
[353535502,1739903375149,-1000.0,0.00021917,120]
[353535503,1739903375174,-1000.0,0.00021917,120]
[353535504,1739903375199,-1121.13212708,0.00021917,120]
[353535505,1739903375227,-285.6583477,0.00022,120]
[353535506,1739903375251,-421.67322637,0.00022,120]
[353535507,1739903375278,-500.0,0.0002219,90]
[353535508,1739903375303,-200.0,0.000225,120]
[353535509,1739903375332,-172.92,0.00023,120]
[353535510,1739903375358,-1018.03229008,0.00023,120]
[353535511,1739903375383,-373.22705687,0.00023,30]
[353535512,1739903375407,-395.4723945,0.00023,120]
[353535513,1739903375432,-2085.46005001,0.0002301,120]
[353535514,1739903375461,-152.98,0.000234,31]
[353535515,1739903375490,-152.98,0.000234,31]
[353535516,1739903375518,-152.98,0.000234,31]
[353535517,1739903375547,-152.98,0.000234,31]
[353535518,1739903375573,-152.98,0.000234,31]
[353535519,1739903375600,-152.98,0.000234,31]
[353535520,1739903375627,-152.98,0.000234,31]
[353535521,1739903375654,-152.98,0.000234,31]
[353535522,1739903375681,-152.98,0.000234,31]
[353535523,1739903375709,-152.98,0.000234,31]
[353535524,1739903375736,-152.98,0.000234,31]
[353535525,1739903375762,-152.98,0.000234,31]
[353535526,1739903375789,-152.98,0.000234,31]
[353535527,1739903375816,-152.98,0.000234,31]
[353535528,1739903375845,-152.98,0.000234,31]
[353535529,1739903375873,-152.98,0.000234,31]
[353535530,1739903375900,-152.98,0.000234,31]
[353535531,1739903375928,-152.98,0.000234,31]
[353535532,1739903375955,-152.98,0.000234,31]
[353535533,1739903375983,-152.98,0.000234,31]
[353535535,1739903376010,-152.98,0.000234,31]
[353535537,1739903376038,-152.98,0.000234,31]
[353535539,1739903376063,-1400.0,0.000235,30]
[353535540,1739903376087,-500.0,0.000235,30]
[353535541,1739903376112,-501.9007438,0.000235,30]
[353535542,1739903376136,-550.19486119,0.000235,30]
[353535543,1739903376161,-1400.0,0.000235,30]
[353535545,1739903376186,-1400.0,0.000235,30]
[353535546,1739903376210,-1400.0,0.000235,30]
[353535547,1739903376235,-1400.0,0.000235,30]
[353535548,1739903376259,-1400.0,0.000235,30]
[353535549,1739903376284,-800.0,0.000235,30]
[353535550,1739903376310,-1400.0,0.000235,30]
[353535551,1739903376336,-800.0,0.000235,30]
[353535552,1739903376361,-1400.0,0.000235,30]
[353535553,1739903376385,-551.96817703,0.000235,30]
[353535554,1739903376412,-160.38363695,0.000235,30]
[353535555,1739903376597,-1400.0,0.000235,30]
[353535556,1739903376623,-500.0,0.000235,30]
[353535557,1739903376648,-1400.0,0.000235,30]
[353535558,1739903376673,-800.0,0.000235,30]
[353535559,1739903376699,-500.0,0.000235,30]
[353535560,1739903376723,-1400.0,0.000235,30]
[353535561,1739903376749,-800.0,0.000235,30]
[353535562,1739903376774,-1400.0,0.000235,30]
[353535563,1739903376798,-800.0,0.000235,30]
[353535564,1739903376823,-1400.0,0.000235,30]
[353535565,1739903376848,-800.0,0.000235,30]
[353535566,1739903376873,-1400.0,0.000235,30]
[353535567,1739903376898,-800.0,0.000235,30]
[353535568,1739903376923,-800.0,0.000235,30]
[353535569,1739903376948,-500.0,0.000235,30]
[353535570,1739903376972,-164.20382981,0.000235,30]
[353535571,1739903376998,-800.0,0.000235,30]
[353535572,1739903377022,-800.0,0.000235,30]
[353535573,1739903377046,-800.0,0.000235,30]
[353535574,1739903377070,-209.57930737,0.000235,30]
[353535575,1739903377094,-500.7,0.000235,30]
[353535576,1739903377119,-299.64636555,0.000235,30]
[353535577,1739903377143,-993.60244941,0.000235,30]
[353535578,1739903377167,-800.0,0.000235,30]
[353535579,1739903377191,-800.0,0.000235,30]
[353535580,1739903377215,-536.37358314,0.000235,30]
[353535581,1739903377240,-500.0,0.000235,30]
[353535582,1739903377265,-557.86218836,0.000235,30]
[353535583,1739903377290,-500.0,0.000235,30]
[353535584,1739903377315,-500.0,0.000235,30]
[353535585,1739903377342,-810.0,0.000235,30]
[353535586,1739903377366,-500.0,0.000235,30]
[353535587,1739903377390,-500.0,0.000235,30]
[353535588,1739903377416,-534.37376668,0.000235,30]
[353535589,1739903377440,-500.0,0.000235,30]
[353535590,1739903377464,-693.02789022,0.000235,30]
[353535591,1739903377489,-161.29356891,0.000235,30]
[353535592,1739903377514,-500.0,0.000235,30]
[353535593,1739903377540,-500.0,0.000235,30]
[353535594,1739903377564,-503.02874447,0.000235,30]
[353535595,1739903377590,-500.0,0.000235,30]
[353535596,1739903377615,-534.24764414,0.000235,30]
[353535597,1739903377639,-170.3433118,0.000235,30]
[353535598,1739903377664,-160.6129759,0.000235,30]
[353535599,1739903377690,-551.38179028,0.000235,30]
[353535600,1739903377715,-500.0,0.000235,30]
[353535601,1739903377748,-511.64691609,0.000235,30]
[353535602,1739903377776,-534.72304744,0.000235,30]
[353535603,1739903377804,-500.0,0.000235,30]
[353535604,1739903377830,-240.0039696,0.000235,30]
[353535605,1739903377856,-500.0,0.000235,30]
[353535606,1739903377882,-500.0,0.000235,30]
[353535607,1739903377907,-500.0,0.000235,30]
[353535608,1739903377933,-500.0,0.000235,30]
[353535609,1739903377959,-500.0,0.000235,30]
[353535610,1739903377989,-500.0,0.000235,30]
[353535611,1739903378015,-548.15668041,0.000235,30]
[353535612,1739903378041,-541.04647407,0.000235,30]
[353535613,1739903378066,-188.75525145,0.000235,30]
[353535614,1739903378092,-500.0,0.000235,30]
[353535615,1739903378118,-500.0,0.000235,30]
[353535616,1739903378143,-500.0,0.000235,30]
[353535617,1739903378168,-500.0,0.000235,30]
[353535618,1739903378193,-961.70789861,0.000235,30]
[353535619,1739903378218,-945.9506378,0.000235,30]
[353535620,1739903378245,-500.0,0.000235,30]
[353535621,1739903378270,-500.0,0.000235,30]
[353535622,1739903378295,-500.0,0.000235,30]
[353535623,1739903378319,-500.0,0.000235,30]
[353535624,1739903378347,-500.0,0.000235,30]
[353535625,1739903378373,-500.0,0.000235,30]
[353535626,1739903378398,-208.00370264,0.000235,30]
[353535627,1739903378423,-500.0,0.000235,30]
[353535628,1739903378448,-500.0,0.000235,30]
[353535629,1739903378473,-500.0,0.000235,30]
[353535630,1739903378500,-500.0,0.000235,30]
[353535631,1739903378524,-500.0,0.000235,30]
[353535632,1739903378548,-500.0,0.000235,30]
[353535633,1739903378572,-500.0,0.000235,30]